Workbook

Sheet Denník jázd
B1: DENNÍK JÁZD
C11: NAHRADITEĽNÉ | E11: CELKOM
C12: KILOMETRE | E12: NÁHRADA
C17: 2012-05-01 | E17: 2012-05-10
C19: OBDOBIE | E19: OBDOBIE
C20: ZAČIATOK | E20: KONIEC
C26: 54 | E26: 9,800
C28: NÁHRADA | E28: PREDCHÁDZAJÚCI STAV PALIVA
C29: ¢/Kilometer | E29: POČÍTADLO NAJAZDENÝCH KM

Sheet Údaje denníka
B1: DENNÍK JÁZD
B5: DÁTUM | C5: ČINNOSť | D5: POČÍTADLO 1 | E5: MIESTO | F5: POČÍTADLO 2 | G5: CIEĽ | H5: NÁHRADA | I5: LITRE | J5: NÁKLADY | K5: KILOMETRE | L5: KM/L | M5: ¢/KILOMETER | N5: POZNÁMKY
B6: 2012-05-01 | C6: Cesta | D6: 10,123 | E6: Bratislava – hlavná st. | F6: 10,130 | I6: 15.56 | J6: 64.11 € | K6: =kilometre -> 7 | L6: =IF(OR(LEN(údaje[[#This Row],[POČÍTADLO 2]]),údaje[[#This Row],[POČÍTADLO 1]]=""),"",IFERROR(údaje[[#This Row],[KILOMETRE]]/údaje[[#This Row],[LITRE]],"")) ->  | M6: =IF(údaje[[#This Row],[KM/L]]="","",100*údaje[[#This Row],[NÁKLADY]]/údaje[[#This Row],[KILOMETRE]]) -> 
B7: 2012-05-01 | C7: Cesta | D7: 10,130 | E7: Kancelária | F7: 10,200 | G7: Balkánska ul. | H7: Áno | K7: =kilometre -> 70 | L7: =IF(OR(LEN(údaje[[#This Row],[POČÍTADLO 2]]),údaje[[#This Row],[POČÍTADLO 1]]=""),"",IFERROR(údaje[[#This Row],[KILOMETRE]]/údaje[[#This Row],[LITRE]],"")) ->  | M7: =IF(údaje[[#This Row],[KM/L]]="","",100*údaje[[#This Row],[NÁKLADY]]/údaje[[#This Row],[KILOMETRE]]) -> 
B8: 2012-05-01 | C8: Cesta | D8: 10,200 | E8: Sládkovičovo | F8: 10,285 | G8: Kancelária | H8: Áno | K8: =kilometre -> 85 | L8: =IF(OR(LEN(údaje[[#This Row],[POČÍTADLO 2]]),údaje[[#This Row],[POČÍTADLO 1]]=""),"",IFERROR(údaje[[#This Row],[KILOMETRE]]/údaje[[#This Row],[LITRE]],"")) ->  | M8: =IF(údaje[[#This Row],[KM/L]]="","",100*údaje[[#This Row],[NÁKLADY]]/údaje[[#This Row],[KILOMETRE]]) -> 
B9: 2012-05-02 | C9: Cesta | D9: 10,285 | E9: Kancelária | F9: 10,450 | G9: Modra | H9: Áno | K9: =kilometre -> 165 | L9: =IF(OR(LEN(údaje[[#This Row],[POČÍTADLO 2]]),údaje[[#This Row],[POČÍTADLO 1]]=""),"",IFERROR(údaje[[#This Row],[KILOMETRE]]/údaje[[#This Row],[LITRE]],"")) ->  | M9: =IF(údaje[[#This Row],[KM/L]]="","",100*údaje[[#This Row],[NÁKLADY]]/údaje[[#This Row],[KILOMETRE]]) -> 
B10: 2012-05-02 | C10: Palivo | D10: 10,450 | E10: Shell | I10: 11.20 | J10: 55.42 € | K10: =kilometre -> 650 | L10: =IF(OR(LEN(údaje[[#This Row],[POČÍTADLO 2]]),údaje[[#This Row],[POČÍTADLO 1]]=""),"",IFERROR(údaje[[#This Row],[KILOMETRE]]/údaje[[#This Row],[LITRE]],"")) -> 58.0 | M10: =IF(údaje[[#This Row],[KM/L]]="","",100*údaje[[#This Row],[NÁKLADY]]/údaje[[#This Row],[KILOMETRE]]) -> 8.5
B11: 2012-05-02 | C11: Cesta | D11: 10,500 | E11: Modra | F11: 10,518 | G11: Kancelária | H11: Áno | K11: =kilometre -> 18 | L11: =IF(OR(LEN(údaje[[#This Row],[POČÍTADLO 2]]),údaje[[#This Row],[POČÍTADLO 1]]=""),"",IFERROR(údaje[[#This Row],[KILOMETRE]]/údaje[[#This Row],[LITRE]],"")) ->  | M11: =IF(údaje[[#This Row],[KM/L]]="","",100*údaje[[#This Row],[NÁKLADY]]/údaje[[#This Row],[KILOMETRE]]) -> 
B12: 2012-05-03 | C12: Cesta | D12: 10,518 | E12: Kancelária | F12: 10,745 | G12: Kancelária | H12: Áno | K12: =kilometre -> 227 | L12: =IF(OR(LEN(údaje[[#This Row],[POČÍTADLO 2]]),údaje[[#This Row],[POČÍTADLO 1]]=""),"",IFERROR(údaje[[#This Row],[KILOMETRE]]/údaje[[#This Row],[LITRE]],"")) ->  | M12: =IF(údaje[[#This Row],[KM/L]]="","",100*údaje[[#This Row],[NÁKLADY]]/údaje[[#This Row],[KILOMETRE]]) -> 
B13: 2012-05-04 | C13: Palivo | D13: 10,745 | E13: Bratislava – hlavná st. | I13: 16.60 | J13: 69.24 € | K13: =kilometre -> 295 | L13: =IF(OR(LEN(údaje[[#This Row],[POČÍTADLO 2]]),údaje[[#This Row],[POČÍTADLO 1]]=""),"",IFERROR(údaje[[#This Row],[KILOMETRE]]/údaje[[#This Row],[LITRE]],"")) -> 17.8 | M13: =IF(údaje[[#This Row],[KM/L]]="","",100*údaje[[#This Row],[NÁKLADY]]/údaje[[#This Row],[KILOMETRE]]) -> 23.5
B14: 2012-05-04 | C14: Cesta | D14: 10,745 | E14: Kancelária | F14: 10,800 | G14: Bratislava – Rača | H14: Áno | K14: =kilometre -> 55 | L14: =IF(OR(LEN(údaje[[#This Row],[POČÍTADLO 2]]),údaje[[#This Row],[POČÍTADLO 1]]=""),"",IFERROR(údaje[[#This Row],[KILOMETRE]]/údaje[[#This Row],[LITRE]],"")) ->  | M14: =IF(údaje[[#This Row],[KM/L]]="","",100*údaje[[#This Row],[NÁKLADY]]/údaje[[#This Row],[KILOMETRE]]) -> 
B15: 2012-05-04 | C15: Cesta | D15: 10,800 | E15: Bratislava – Rača | F15: 10,875 | G15: Kancelária | H15: Áno | K15: =kilometre -> 75 | L15: =IF(OR(LEN(údaje[[#This Row],[POČÍTADLO 2]]),údaje[[#This Row],[POČÍTADLO 1]]=""),"",IFERROR(údaje[[#This Row],[KILOMETRE]]/údaje[[#This Row],[LITRE]],"")) ->  | M15: =IF(údaje[[#This Row],[KM/L]]="","",100*údaje[[#This Row],[NÁKLADY]]/údaje[[#This Row],[KILOMETRE]]) -> 
B16: 2012-05-07 | C16: Cesta | D16: 10,875 | E16: Kancelária | F16: 10,921 | G16: Balkánska ul. | H16: Áno | K16: =kilometre -> 46 | L16: =IF(OR(LEN(údaje[[#This Row],[POČÍTADLO 2]]),údaje[[#This Row],[POČÍTADLO 1]]=""),"",IFERROR(údaje[[#This Row],[KILOMETRE]]/údaje[[#This Row],[LITRE]],"")) ->  | M16: =IF(údaje[[#This Row],[KM/L]]="","",100*údaje[[#This Row],[NÁKLADY]]/údaje[[#This Row],[KILOMETRE]]) -> 
B17: 2012-05-07 | C17: Cesta | D17: 10,921 | E17: Sládkovičovo | F17: 10,969 | G17: Kancelária | H17: Áno | K17: =kilometre -> 48 | L17: =IF(OR(LEN(údaje[[#This Row],[POČÍTADLO 2]]),údaje[[#This Row],[POČÍTADLO 1]]=""),"",IFERROR(údaje[[#This Row],[KILOMETRE]]/údaje[[#This Row],[LITRE]],"")) ->  | M17: =IF(údaje[[#This Row],[KM/L]]="","",100*údaje[[#This Row],[NÁKLADY]]/údaje[[#This Row],[KILOMETRE]]) -> 
B18: 2012-05-09 | C18: Cesta | D18: 10,969 | E18: Kancelária | F18: 11,000 | G18: Trnava | H18: Áno | K18: =kilometre -> 31 | L18: =IF(OR(LEN(údaje[[#This Row],[POČÍTADLO 2]]),údaje[[#This Row],[POČÍTADLO 1]]=""),"",IFERROR(údaje[[#This Row],[KILOMETRE]]/údaje[[#This Row],[LITRE]],"")) ->  | M18: =IF(údaje[[#This Row],[KM/L]]="","",100*údaje[[#This Row],[NÁKLADY]]/údaje[[#This Row],[KILOMETRE]]) -> 
B19: 2012-05-09 | C19: Cesta | D19: 11,000 | E19: Trnava | F19: 11,100 | G19: Domov | H19: NIE | K19: =kilometre -> 100 | L19: =IF(OR(LEN(údaje[[#This Row],[POČÍTADLO 2]]),údaje[[#This Row],[POČÍTADLO 1]]=""),"",IFERROR(údaje[[#This Row],[KILOMETRE]]/údaje[[#This Row],[LITRE]],"")) ->  | M19: =IF(údaje[[#This Row],[KM/L]]="","",100*údaje[[#This Row],[NÁKLADY]]/údaje[[#This Row],[KILOMETRE]]) -> 

Sheet výpočty (hidden)
A1: *** Tento hárok zostane skrytý ***
I6: =OFFSET(I9,,druháNáprava="Náklady na palivo") -> ¢/Kilometer
M7: 2
H8: Cesta | I8: Palivo | J8: Palivo | L8: Druhá náprava: | M8: =REPT("KM/L",M7=1)&REPT("Náklady na palivo",M7=2) -> Náklady na palivo
H9: Najazdené kilometre | I9: KM/L | J9: ¢/Kilometer
C10: Nahraditeľné kilometre: | D10: =SUMIFS(údaje[KILOMETRE],údaje[NÁHRADA],"Áno",údaje[DÁTUM],">="&obdobieZačiatok,údaje[DÁTUM],"<="&obdobieKoniec) -> 820 | F10: 1 | G10: =obdobieZačiatok -> 2012-05-01 | H10: =SUMIFS(údaje[KILOMETRE],údaje[DÁTUM],G10,údaje[ČINNOSť],$H$8) -> 162 | I10: =IFERROR(AVERAGEIFS(údaje[KM/L],údaje[DÁTUM],G10,údaje[ČINNOSť],$I$8),NA()) ->  | J10: =IFERROR(AVERAGEIFS(údaje[¢/KILOMETER],údaje[DÁTUM],G10,údaje[ČINNOSť],$J$8),NA()) -> 
C11: Celková náhrada: | D11: =D10*NáhradaZaKilometer/100 -> 442.80 € | F11: 2 | G11: =G10+1 -> 2012-05-02 | H11: =SUMIFS(údaje[KILOMETRE],údaje[DÁTUM],G11,údaje[ČINNOSť],$H$8) -> 183 | I11: =IFERROR(AVERAGEIFS(údaje[KM/L],údaje[DÁTUM],G11,údaje[ČINNOSť],$I$8),NA()) -> 58.0 | J11: =IFERROR(AVERAGEIFS(údaje[¢/KILOMETER],údaje[DÁTUM],G11,údaje[ČINNOSť],$J$8),NA()) -> 8.5
F12: 3 | G12: 2012-05-03 | H12: =SUMIFS(údaje[KILOMETRE],údaje[DÁTUM],G12,údaje[ČINNOSť],$H$8) -> 227 | I12: =IFERROR(AVERAGEIFS(údaje[KM/L],údaje[DÁTUM],G12,údaje[ČINNOSť],$I$8),NA()) ->  | J12: =IFERROR(AVERAGEIFS(údaje[¢/KILOMETER],údaje[DÁTUM],G12,údaje[ČINNOSť],$J$8),NA()) -> 
F13: 4 | G13: 2012-05-04 | H13: =SUMIFS(údaje[KILOMETRE],údaje[DÁTUM],G13,údaje[ČINNOSť],$H$8) -> 130 | I13: =IFERROR(AVERAGEIFS(údaje[KM/L],údaje[DÁTUM],G13,údaje[ČINNOSť],$I$8),NA()) -> 17.8 | J13: =IFERROR(AVERAGEIFS(údaje[¢/KILOMETER],údaje[DÁTUM],G13,údaje[ČINNOSť],$J$8),NA()) -> 23.5
F14: 5 | G14: 2012-05-05 | H14: =SUMIFS(údaje[KILOMETRE],údaje[DÁTUM],G14,údaje[ČINNOSť],$H$8) -> 0 | I14: =IFERROR(AVERAGEIFS(údaje[KM/L],údaje[DÁTUM],G14,údaje[ČINNOSť],$I$8),NA()) ->  | J14: =IFERROR(AVERAGEIFS(údaje[¢/KILOMETER],údaje[DÁTUM],G14,údaje[ČINNOSť],$J$8),NA()) -> 
F15: 6 | G15: 2012-05-06 | H15: =SUMIFS(údaje[KILOMETRE],údaje[DÁTUM],G15,údaje[ČINNOSť],$H$8) -> 0 | I15: =IFERROR(AVERAGEIFS(údaje[KM/L],údaje[DÁTUM],G15,údaje[ČINNOSť],$I$8),NA()) ->  | J15: =IFERROR(AVERAGEIFS(údaje[¢/KILOMETER],údaje[DÁTUM],G15,údaje[ČINNOSť],$J$8),NA()) -> 
F16: 7 | G16: 2012-05-07 | H16: =SUMIFS(údaje[KILOMETRE],údaje[DÁTUM],G16,údaje[ČINNOSť],$H$8) -> 94 | I16: =IFERROR(AVERAGEIFS(údaje[KM/L],údaje[DÁTUM],G16,údaje[ČINNOSť],$I$8),NA()) ->  | J16: =IFERROR(AVERAGEIFS(údaje[¢/KILOMETER],údaje[DÁTUM],G16,údaje[ČINNOSť],$J$8),NA()) -> 
F17: 8 | G17: 2012-05-08 | H17: =SUMIFS(údaje[KILOMETRE],údaje[DÁTUM],G17,údaje[ČINNOSť],$H$8) -> 0 | I17: =IFERROR(AVERAGEIFS(údaje[KM/L],údaje[DÁTUM],G17,údaje[ČINNOSť],$I$8),NA()) ->  | J17: =IFERROR(AVERAGEIFS(údaje[¢/KILOMETER],údaje[DÁTUM],G17,údaje[ČINNOSť],$J$8),NA()) -> 
F18: 9 | G18: 2012-05-09 | H18: =SUMIFS(údaje[KILOMETRE],údaje[DÁTUM],G18,údaje[ČINNOSť],$H$8) -> 131 | I18: =IFERROR(AVERAGEIFS(údaje[KM/L],údaje[DÁTUM],G18,údaje[ČINNOSť],$I$8),NA()) ->  | J18: =IFERROR(AVERAGEIFS(údaje[¢/KILOMETER],údaje[DÁTUM],G18,údaje[ČINNOSť],$J$8),NA()) -> 
F19: 10 | G19: 2012-05-10 | H19: =SUMIFS(údaje[KILOMETRE],údaje[DÁTUM],G19,údaje[ČINNOSť],$H$8) -> 0 | I19: =IFERROR(AVERAGEIFS(údaje[KM/L],údaje[DÁTUM],G19,údaje[ČINNOSť],$I$8),NA()) ->  | J19: =IFERROR(AVERAGEIFS(údaje[¢/KILOMETER],údaje[DÁTUM],G19,údaje[ČINNOSť],$J$8),NA()) -> 
F20: 11 | G20: 2012-05-11 | H20: =SUMIFS(údaje[KILOMETRE],údaje[DÁTUM],G20,údaje[ČINNOSť],$H$8) -> 0 | I20: =IFERROR(AVERAGEIFS(údaje[KM/L],údaje[DÁTUM],G20,údaje[ČINNOSť],$I$8),NA()) ->  | J20: =IFERROR(AVERAGEIFS(údaje[¢/KILOMETER],údaje[DÁTUM],G20,údaje[ČINNOSť],$J$8),NA()) -> 
F21: 12 | G21: 2012-05-12 | H21: =SUMIFS(údaje[KILOMETRE],údaje[DÁTUM],G21,údaje[ČINNOSť],$H$8) -> 0 | I21: =IFERROR(AVERAGEIFS(údaje[KM/L],údaje[DÁTUM],G21,údaje[ČINNOSť],$I$8),NA()) ->  | J21: =IFERROR(AVERAGEIFS(údaje[¢/KILOMETER],údaje[DÁTUM],G21,údaje[ČINNOSť],$J$8),NA()) -> 
F22: 13 | G22: 2012-05-13 | H22: =SUMIFS(údaje[KILOMETRE],údaje[DÁTUM],G22,údaje[ČINNOSť],$H$8) -> 0 | I22: =IFERROR(AVERAGEIFS(údaje[KM/L],údaje[DÁTUM],G22,údaje[ČINNOSť],$I$8),NA()) ->  | J22: =IFERROR(AVERAGEIFS(údaje[¢/KILOMETER],údaje[DÁTUM],G22,údaje[ČINNOSť],$J$8),NA()) -> 
F23: 14 | G23: 2012-05-14 | H23: =SUMIFS(údaje[KILOMETRE],údaje[DÁTUM],G23,údaje[ČINNOSť],$H$8) -> 0 | I23: =IFERROR(AVERAGEIFS(údaje[KM/L],údaje[DÁTUM],G23,údaje[ČINNOSť],$I$8),NA()) ->  | J23: =IFERROR(AVERAGEIFS(údaje[¢/KILOMETER],údaje[DÁTUM],G23,údaje[ČINNOSť],$J$8),NA()) -> 
F24: 15 | G24: 2012-05-15 | H24: =SUMIFS(údaje[KILOMETRE],údaje[DÁTUM],G24,údaje[ČINNOSť],$H$8) -> 0 | I24: =IFERROR(AVERAGEIFS(údaje[KM/L],údaje[DÁTUM],G24,údaje[ČINNOSť],$I$8),NA()) ->  | J24: =IFERROR(AVERAGEIFS(údaje[¢/KILOMETER],údaje[DÁTUM],G24,údaje[ČINNOSť],$J$8),NA()) -> 
F25: 16 | G25: 2012-05-16 | H25: =SUMIFS(údaje[KILOMETRE],údaje[DÁTUM],G25,údaje[ČINNOSť],$H$8) -> 0 | I25: =IFERROR(AVERAGEIFS(údaje[KM/L],údaje[DÁTUM],G25,údaje[ČINNOSť],$I$8),NA()) ->  | J25: =IFERROR(AVERAGEIFS(údaje[¢/KILOMETER],údaje[DÁTUM],G25,údaje[ČINNOSť],$J$8),NA()) -> 
F26: 17 | G26: 2012-05-17 | H26: =SUMIFS(údaje[KILOMETRE],údaje[DÁTUM],G26,údaje[ČINNOSť],$H$8) -> 0 | I26: =IFERROR(AVERAGEIFS(údaje[KM/L],údaje[DÁTUM],G26,údaje[ČINNOSť],$I$8),NA()) ->  | J26: =IFERROR(AVERAGEIFS(údaje[¢/KILOMETER],údaje[DÁTUM],G26,údaje[ČINNOSť],$J$8),NA()) -> 
F27: 18 | G27: 2012-05-18 | H27: =SUMIFS(údaje[KILOMETRE],údaje[DÁTUM],G27,údaje[ČINNOSť],$H$8) -> 0 | I27: =IFERROR(AVERAGEIFS(údaje[KM/L],údaje[DÁTUM],G27,údaje[ČINNOSť],$I$8),NA()) ->  | J27: =IFERROR(AVERAGEIFS(údaje[¢/KILOMETER],údaje[DÁTUM],G27,údaje[ČINNOSť],$J$8),NA()) -> 
F28: 19 | G28: 2012-05-19 | H28: =SUMIFS(údaje[KILOMETRE],údaje[DÁTUM],G28,údaje[ČINNOSť],$H$8) -> 0 | I28: =IFERROR(AVERAGEIFS(údaje[KM/L],údaje[DÁTUM],G28,údaje[ČINNOSť],$I$8),NA()) ->  | J28: =IFERROR(AVERAGEIFS(údaje[¢/KILOMETER],údaje[DÁTUM],G28,údaje[ČINNOSť],$J$8),NA()) -> 
F29: 20 | G29: 2012-05-20 | H29: =SUMIFS(údaje[KILOMETRE],údaje[DÁTUM],G29,údaje[ČINNOSť],$H$8) -> 0 | I29: =IFERROR(AVERAGEIFS(údaje[KM/L],údaje[DÁTUM],G29,údaje[ČINNOSť],$I$8),NA()) ->  | J29: =IFERROR(AVERAGEIFS(údaje[¢/KILOMETER],údaje[DÁTUM],G29,údaje[ČINNOSť],$J$8),NA()) -> 
F30: 21 | G30: 2012-05-21 | H30: =SUMIFS(údaje[KILOMETRE],údaje[DÁTUM],G30,údaje[ČINNOSť],$H$8) -> 0 | I30: =IFERROR(AVERAGEIFS(údaje[KM/L],údaje[DÁTUM],G30,údaje[ČINNOSť],$I$8),NA()) ->  | J30: =IFERROR(AVERAGEIFS(údaje[¢/KILOMETER],údaje[DÁTUM],G30,údaje[ČINNOSť],$J$8),NA()) -> 
F31: 22 | G31: 2012-05-22 | H31: =SUMIFS(údaje[KILOMETRE],údaje[DÁTUM],G31,údaje[ČINNOSť],$H$8) -> 0 | I31: =IFERROR(AVERAGEIFS(údaje[KM/L],údaje[DÁTUM],G31,údaje[ČINNOSť],$I$8),NA()) ->  | J31: =IFERROR(AVERAGEIFS(údaje[¢/KILOMETER],údaje[DÁTUM],G31,údaje[ČINNOSť],$J$8),NA()) -> 
F32: 23 | G32: 2012-05-23 | H32: =SUMIFS(údaje[KILOMETRE],údaje[DÁTUM],G32,údaje[ČINNOSť],$H$8) -> 0 | I32: =IFERROR(AVERAGEIFS(údaje[KM/L],údaje[DÁTUM],G32,údaje[ČINNOSť],$I$8),NA()) ->  | J32: =IFERROR(AVERAGEIFS(údaje[¢/KILOMETER],údaje[DÁTUM],G32,údaje[ČINNOSť],$J$8),NA()) -> 
F33: 24 | G33: 2012-05-24 | H33: =SUMIFS(údaje[KILOMETRE],údaje[DÁTUM],G33,údaje[ČINNOSť],$H$8) -> 0 | I33: =IFERROR(AVERAGEIFS(údaje[KM/L],údaje[DÁTUM],G33,údaje[ČINNOSť],$I$8),NA()) ->  | J33: =IFERROR(AVERAGEIFS(údaje[¢/KILOMETER],údaje[DÁTUM],G33,údaje[ČINNOSť],$J$8),NA()) -> 
F34: 25 | G34: 2012-05-25 | H34: =SUMIFS(údaje[KILOMETRE],údaje[DÁTUM],G34,údaje[ČINNOSť],$H$8) -> 0 | I34: =IFERROR(AVERAGEIFS(údaje[KM/L],údaje[DÁTUM],G34,údaje[ČINNOSť],$I$8),NA()) ->  | J34: =IFERROR(AVERAGEIFS(údaje[¢/KILOMETER],údaje[DÁTUM],G34,údaje[ČINNOSť],$J$8),NA()) -> 
F35: 26 | G35: 2012-05-26 | H35: =SUMIFS(údaje[KILOMETRE],údaje[DÁTUM],G35,údaje[ČINNOSť],$H$8) -> 0 | I35: =IFERROR(AVERAGEIFS(údaje[KM/L],údaje[DÁTUM],G35,údaje[ČINNOSť],$I$8),NA()) ->  | J35: =IFERROR(AVERAGEIFS(údaje[¢/KILOMETER],údaje[DÁTUM],G35,údaje[ČINNOSť],$J$8),NA()) -> 
F36: 27 | G36: 2012-05-27 | H36: =SUMIFS(údaje[KILOMETRE],údaje[DÁTUM],G36,údaje[ČINNOSť],$H$8) -> 0 | I36: =IFERROR(AVERAGEIFS(údaje[KM/L],údaje[DÁTUM],G36,údaje[ČINNOSť],$I$8),NA()) ->  | J36: =IFERROR(AVERAGEIFS(údaje[¢/KILOMETER],údaje[DÁTUM],G36,údaje[ČINNOSť],$J$8),NA()) -> 
F37: 28 | G37: 2012-05-28 | H37: =SUMIFS(údaje[KILOMETRE],údaje[DÁTUM],G37,údaje[ČINNOSť],$H$8) -> 0 | I37: =IFERROR(AVERAGEIFS(údaje[KM/L],údaje[DÁTUM],G37,údaje[ČINNOSť],$I$8),NA()) ->  | J37: =IFERROR(AVERAGEIFS(údaje[¢/KILOMETER],údaje[DÁTUM],G37,údaje[ČINNOSť],$J$8),NA()) -> 
F38: 29 | G38: 2012-05-29 | H38: =SUMIFS(údaje[KILOMETRE],údaje[DÁTUM],G38,údaje[ČINNOSť],$H$8) -> 0 | I38: =IFERROR(AVERAGEIFS(údaje[KM/L],údaje[DÁTUM],G38,údaje[ČINNOSť],$I$8),NA()) ->  | J38: =IFERROR(AVERAGEIFS(údaje[¢/KILOMETER],údaje[DÁTUM],G38,údaje[ČINNOSť],$J$8),NA()) -> 
F39: 30 | G39: 2012-05-30 | H39: =SUMIFS(údaje[KILOMETRE],údaje[DÁTUM],G39,údaje[ČINNOSť],$H$8) -> 0 | I39: =IFERROR(AVERAGEIFS(údaje[KM/L],údaje[DÁTUM],G39,údaje[ČINNOSť],$I$8),NA()) ->  | J39: =IFERROR(AVERAGEIFS(údaje[¢/KILOMETER],údaje[DÁTUM],G39,údaje[ČINNOSť],$J$8),NA()) -> 
F40: 31 | G40: 2012-05-31 | H40: =SUMIFS(údaje[KILOMETRE],údaje[DÁTUM],G40,údaje[ČINNOSť],$H$8) -> 0 | I40: =IFERROR(AVERAGEIFS(údaje[KM/L],údaje[DÁTUM],G40,údaje[ČINNOSť],$I$8),NA()) ->  | J40: =IFERROR(AVERAGEIFS(údaje[¢/KILOMETER],údaje[DÁTUM],G40,údaje[ČINNOSť],$J$8),NA()) -> 
F41: 32 | G41: 2012-06-01 | H41: =SUMIFS(údaje[KILOMETRE],údaje[DÁTUM],G41,údaje[ČINNOSť],$H$8) -> 0 | I41: =IFERROR(AVERAGEIFS(údaje[KM/L],údaje[DÁTUM],G41,údaje[ČINNOSť],$I$8),NA()) ->  | J41: =IFERROR(AVERAGEIFS(údaje[¢/KILOMETER],údaje[DÁTUM],G41,údaje[ČINNOSť],$J$8),NA()) -> 
F42: 33 | G42: 2012-06-02 | H42: =SUMIFS(údaje[KILOMETRE],údaje[DÁTUM],G42,údaje[ČINNOSť],$H$8) -> 0 | I42: =IFERROR(AVERAGEIFS(údaje[KM/L],údaje[DÁTUM],G42,údaje[ČINNOSť],$I$8),NA()) ->  | J42: =IFERROR(AVERAGEIFS(údaje[¢/KILOMETER],údaje[DÁTUM],G42,údaje[ČINNOSť],$J$8),NA()) -> 
F43: 34 | G43: =G42+1 -> 2012-06-03 | H43: =SUMIFS(údaje[KILOMETRE],údaje[DÁTUM],G43,údaje[ČINNOSť],$H$8) -> 0 | I43: =IFERROR(AVERAGEIFS(údaje[KM/L],údaje[DÁTUM],G43,údaje[ČINNOSť],$I$8),NA()) ->  | J43: =IFERROR(AVERAGEIFS(údaje[¢/KILOMETER],údaje[DÁTUM],G43,údaje[ČINNOSť],$J$8),NA()) -> 
F44: 35 | G44: 2012-06-04 | H44: =SUMIFS(údaje[KILOMETRE],údaje[DÁTUM],G44,údaje[ČINNOSť],$H$8) -> 0 | I44: =IFERROR(AVERAGEIFS(údaje[KM/L],údaje[DÁTUM],G44,údaje[ČINNOSť],$I$8),NA()) ->  | J44: =IFERROR(AVERAGEIFS(údaje[¢/KILOMETER],údaje[DÁTUM],G44,údaje[ČINNOSť],$J$8),NA()) -> 
F45: 36 | G45: 2012-06-05 | H45: =SUMIFS(údaje[KILOMETRE],údaje[DÁTUM],G45,údaje[ČINNOSť],$H$8) -> 0 | I45: =IFERROR(AVERAGEIFS(údaje[KM/L],údaje[DÁTUM],G45,údaje[ČINNOSť],$I$8),NA()) ->  | J45: =IFERROR(AVERAGEIFS(údaje[¢/KILOMETER],údaje[DÁTUM],G45,údaje[ČINNOSť],$J$8),NA()) -> 
F46: 37 | G46: 2012-06-06 | H46: =SUMIFS(údaje[KILOMETRE],údaje[DÁTUM],G46,údaje[ČINNOSť],$H$8) -> 0 | I46: =IFERROR(AVERAGEIFS(údaje[KM/L],údaje[DÁTUM],G46,údaje[ČINNOSť],$I$8),NA()) ->  | J46: =IFERROR(AVERAGEIFS(údaje[¢/KILOMETER],údaje[DÁTUM],G46,údaje[ČINNOSť],$J$8),NA()) -> 
F47: 38 | G47: 2012-06-07 | H47: =SUMIFS(údaje[KILOMETRE],údaje[DÁTUM],G47,údaje[ČINNOSť],$H$8) -> 0 | I47: =IFERROR(AVERAGEIFS(údaje[KM/L],údaje[DÁTUM],G47,údaje[ČINNOSť],$I$8),NA()) ->  | J47: =IFERROR(AVERAGEIFS(údaje[¢/KILOMETER],údaje[DÁTUM],G47,údaje[ČINNOSť],$J$8),NA()) -> 
F48: 39 | G48: 2012-06-08 | H48: =SUMIFS(údaje[KILOMETRE],údaje[DÁTUM],G48,údaje[ČINNOSť],$H$8) -> 0 | I48: =IFERROR(AVERAGEIFS(údaje[KM/L],údaje[DÁTUM],G48,údaje[ČINNOSť],$I$8),NA()) ->  | J48: =IFERROR(AVERAGEIFS(údaje[¢/KILOMETER],údaje[DÁTUM],G48,údaje[ČINNOSť],$J$8),NA()) -> 
F49: 40 | G49: 2012-06-09 | H49: =SUMIFS(údaje[KILOMETRE],údaje[DÁTUM],G49,údaje[ČINNOSť],$H$8) -> 0 | I49: =IFERROR(AVERAGEIFS(údaje[KM/L],údaje[DÁTUM],G49,údaje[ČINNOSť],$I$8),NA()) ->  | J49: =IFERROR(AVERAGEIFS(údaje[¢/KILOMETER],údaje[DÁTUM],G49,údaje[ČINNOSť],$J$8),NA()) -> 
F50: 41 | G50: 2012-06-10 | H50: =SUMIFS(údaje[KILOMETRE],údaje[DÁTUM],G50,údaje[ČINNOSť],$H$8) -> 0 | I50: =IFERROR(AVERAGEIFS(údaje[KM/L],údaje[DÁTUM],G50,údaje[ČINNOSť],$I$8),NA()) ->  | J50: =IFERROR(AVERAGEIFS(údaje[¢/KILOMETER],údaje[DÁTUM],G50,údaje[ČINNOSť],$J$8),NA()) -> 
F51: 42 | G51: 2012-06-11 | H51: =SUMIFS(údaje[KILOMETRE],údaje[DÁTUM],G51,údaje[ČINNOSť],$H$8) -> 0 | I51: =IFERROR(AVERAGEIFS(údaje[KM/L],údaje[DÁTUM],G51,údaje[ČINNOSť],$I$8),NA()) ->  | J51: =IFERROR(AVERAGEIFS(údaje[¢/KILOMETER],údaje[DÁTUM],G51,údaje[ČINNOSť],$J$8),NA()) -> 
F52: 43 | G52: 2012-06-12 | H52: =SUMIFS(údaje[KILOMETRE],údaje[DÁTUM],G52,údaje[ČINNOSť],$H$8) -> 0 | I52: =IFERROR(AVERAGEIFS(údaje[KM/L],údaje[DÁTUM],G52,údaje[ČINNOSť],$I$8),NA()) ->  | J52: =IFERROR(AVERAGEIFS(údaje[¢/KILOMETER],údaje[DÁTUM],G52,údaje[ČINNOSť],$J$8),NA()) -> 
F53: 44 | G53: 2012-06-13 | H53: =SUMIFS(údaje[KILOMETRE],údaje[DÁTUM],G53,údaje[ČINNOSť],$H$8) -> 0 | I53: =IFERROR(AVERAGEIFS(údaje[KM/L],údaje[DÁTUM],G53,údaje[ČINNOSť],$I$8),NA()) ->  | J53: =IFERROR(AVERAGEIFS(údaje[¢/KILOMETER],údaje[DÁTUM],G53,údaje[ČINNOSť],$J$8),NA()) -> 
F54: 45 | G54: 2012-06-14 | H54: =SUMIFS(údaje[KILOMETRE],údaje[DÁTUM],G54,údaje[ČINNOSť],$H$8) -> 0 | I54: =IFERROR(AVERAGEIFS(údaje[KM/L],údaje[DÁTUM],G54,údaje[ČINNOSť],$I$8),NA()) ->  | J54: =IFERROR(AVERAGEIFS(údaje[¢/KILOMETER],údaje[DÁTUM],G54,údaje[ČINNOSť],$J$8),NA()) -> 
F55: 46 | G55: 2012-06-15 | H55: =SUMIFS(údaje[KILOMETRE],údaje[DÁTUM],G55,údaje[ČINNOSť],$H$8) -> 0 | I55: =IFERROR(AVERAGEIFS(údaje[KM/L],údaje[DÁTUM],G55,údaje[ČINNOSť],$I$8),NA()) ->  | J55: =IFERROR(AVERAGEIFS(údaje[¢/KILOMETER],údaje[DÁTUM],G55,údaje[ČINNOSť],$J$8),NA()) -> 
F56: 47 | G56: 2012-06-16 | H56: =SUMIFS(údaje[KILOMETRE],údaje[DÁTUM],G56,údaje[ČINNOSť],$H$8) -> 0 | I56: =IFERROR(AVERAGEIFS(údaje[KM/L],údaje[DÁTUM],G56,údaje[ČINNOSť],$I$8),NA()) ->  | J56: =IFERROR(AVERAGEIFS(údaje[¢/KILOMETER],údaje[DÁTUM],G56,údaje[ČINNOSť],$J$8),NA()) -> 
F57: 48 | G57: 2012-06-17 | H57: =SUMIFS(údaje[KILOMETRE],údaje[DÁTUM],G57,údaje[ČINNOSť],$H$8) -> 0 | I57: =IFERROR(AVERAGEIFS(údaje[KM/L],údaje[DÁTUM],G57,údaje[ČINNOSť],$I$8),NA()) ->  | J57: =IFERROR(AVERAGEIFS(údaje[¢/KILOMETER],údaje[DÁTUM],G57,údaje[ČINNOSť],$J$8),NA()) -> 
F58: 49 | G58: 2012-06-18 | H58: =SUMIFS(údaje[KILOMETRE],údaje[DÁTUM],G58,údaje[ČINNOSť],$H$8) -> 0 | I58: =IFERROR(AVERAGEIFS(údaje[KM/L],údaje[DÁTUM],G58,údaje[ČINNOSť],$I$8),NA()) ->  | J58: =IFERROR(AVERAGEIFS(údaje[¢/KILOMETER],údaje[DÁTUM],G58,údaje[ČINNOSť],$J$8),NA()) -> 
F59: 50 | G59: 2012-06-19 | H59: =SUMIFS(údaje[KILOMETRE],údaje[DÁTUM],G59,údaje[ČINNOSť],$H$8) -> 0 | I59: =IFERROR(AVERAGEIFS(údaje[KM/L],údaje[DÁTUM],G59,údaje[ČINNOSť],$I$8),NA()) ->  | J59: =IFERROR(AVERAGEIFS(údaje[¢/KILOMETER],údaje[DÁTUM],G59,údaje[ČINNOSť],$J$8),NA()) -> 
F60: 51 | G60: 2012-06-20 | H60: =SUMIFS(údaje[KILOMETRE],údaje[DÁTUM],G60,údaje[ČINNOSť],$H$8) -> 0 | I60: =IFERROR(AVERAGEIFS(údaje[KM/L],údaje[DÁTUM],G60,údaje[ČINNOSť],$I$8),NA()) ->  | J60: =IFERROR(AVERAGEIFS(údaje[¢/KILOMETER],údaje[DÁTUM],G60,údaje[ČINNOSť],$J$8),NA()) -> 
F61: 52 | G61: 2012-06-21 | H61: =SUMIFS(údaje[KILOMETRE],údaje[DÁTUM],G61,údaje[ČINNOSť],$H$8) -> 0 | I61: =IFERROR(AVERAGEIFS(údaje[KM/L],údaje[DÁTUM],G61,údaje[ČINNOSť],$I$8),NA()) ->  | J61: =IFERROR(AVERAGEIFS(údaje[¢/KILOMETER],údaje[DÁTUM],G61,údaje[ČINNOSť],$J$8),NA()) -> 
F62: 53 | G62: 2012-06-22 | H62: =SUMIFS(údaje[KILOMETRE],údaje[DÁTUM],G62,údaje[ČINNOSť],$H$8) -> 0 | I62: =IFERROR(AVERAGEIFS(údaje[KM/L],údaje[DÁTUM],G62,údaje[ČINNOSť],$I$8),NA()) ->  | J62: =IFERROR(AVERAGEIFS(údaje[¢/KILOMETER],údaje[DÁTUM],G62,údaje[ČINNOSť],$J$8),NA()) -> 
F63: 54 | G63: 2012-06-23 | H63: =SUMIFS(údaje[KILOMETRE],údaje[DÁTUM],G63,údaje[ČINNOSť],$H$8) -> 0 | I63: =IFERROR(AVERAGEIFS(údaje[KM/L],údaje[DÁTUM],G63,údaje[ČINNOSť],$I$8),NA()) ->  | J63: =IFERROR(AVERAGEIFS(údaje[¢/KILOMETER],údaje[DÁTUM],G63,údaje[ČINNOSť],$J$8),NA()) -> 
F64: 55 | G64: 2012-06-24 | H64: =SUMIFS(údaje[KILOMETRE],údaje[DÁTUM],G64,údaje[ČINNOSť],$H$8) -> 0 | I64: =IFERROR(AVERAGEIFS(údaje[KM/L],údaje[DÁTUM],G64,údaje[ČINNOSť],$I$8),NA()) ->  | J64: =IFERROR(AVERAGEIFS(údaje[¢/KILOMETER],údaje[DÁTUM],G64,údaje[ČINNOSť],$J$8),NA()) -> 
F65: 56 | G65: 2012-06-25 | H65: =SUMIFS(údaje[KILOMETRE],údaje[DÁTUM],G65,údaje[ČINNOSť],$H$8) -> 0 | I65: =IFERROR(AVERAGEIFS(údaje[KM/L],údaje[DÁTUM],G65,údaje[ČINNOSť],$I$8),NA()) ->  | J65: =IFERROR(AVERAGEIFS(údaje[¢/KILOMETER],údaje[DÁTUM],G65,údaje[ČINNOSť],$J$8),NA()) -> 
F66: 57 | G66: 2012-06-26 | H66: =SUMIFS(údaje[KILOMETRE],údaje[DÁTUM],G66,údaje[ČINNOSť],$H$8) -> 0 | I66: =IFERROR(AVERAGEIFS(údaje[KM/L],údaje[DÁTUM],G66,údaje[ČINNOSť],$I$8),NA()) ->  | J66: =IFERROR(AVERAGEIFS(údaje[¢/KILOMETER],údaje[DÁTUM],G66,údaje[ČINNOSť],$J$8),NA()) -> 
F67: 58 | G67: 2012-06-27 | H67: =SUMIFS(údaje[KILOMETRE],údaje[DÁTUM],G67,údaje[ČINNOSť],$H$8) -> 0 | I67: =IFERROR(AVERAGEIFS(údaje[KM/L],údaje[DÁTUM],G67,údaje[ČINNOSť],$I$8),NA()) ->  | J67: =IFERROR(AVERAGEIFS(údaje[¢/KILOMETER],údaje[DÁTUM],G67,údaje[ČINNOSť],$J$8),NA()) -> 
F68: 59 | G68: 2012-06-28 | H68: =SUMIFS(údaje[KILOMETRE],údaje[DÁTUM],G68,údaje[ČINNOSť],$H$8) -> 0 | I68: =IFERROR(AVERAGEIFS(údaje[KM/L],údaje[DÁTUM],G68,údaje[ČINNOSť],$I$8),NA()) ->  | J68: =IFERROR(AVERAGEIFS(údaje[¢/KILOMETER],údaje[DÁTUM],G68,údaje[ČINNOSť],$J$8),NA()) -> 
F69: 60 | G69: 2012-06-29 | H69: =SUMIFS(údaje[KILOMETRE],údaje[DÁTUM],G69,údaje[ČINNOSť],$H$8) -> 0 | I69: =IFERROR(AVERAGEIFS(údaje[KM/L],údaje[DÁTUM],G69,údaje[ČINNOSť],$I$8),NA()) ->  | J69: =IFERROR(AVERAGEIFS(údaje[¢/KILOMETER],údaje[DÁTUM],G69,údaje[ČINNOSť],$J$8),NA()) -> 
